[Event "*** Titled Tuesday Blitz"]
[Site "Chess.com"]
[Date "2019.02.05"]
[Round "4"]
[White "GMBenjaminBok"]
[Black "Denis_Makhnyov"]
[Result "1-0"]
[WhiteElo "2859"]
[BlackElo "2681"]
[TimeControl "180+2"]
[EndTime "13:50:09 PST"]
[Termination "GMBenjaminBok won by resignation"]

1. Nf3 {[%clk 0:03:01.9]} 1... Nf6 {[%clk 0:02:56.1]} 2. c4 {[%clk 0:03:02.4]}
2... c5 {[%clk 0:02:57.2]} 3. Nc3 {[%clk 0:03:02.6]} 3... b6 {[%clk 0:02:58.6]}
4. g3 {[%clk 0:03:02.4]} 4... Bb7 {[%clk 0:02:59.6]} 5. Bg2 {[%clk 0:03:04]}
5... e6 {[%clk 0:03:01.5]} 6. O-O {[%clk 0:03:04.8]} 6... Be7 {[%clk 0:03:03]}
7. Re1 {[%clk 0:03:02.3]} 7... O-O {[%clk 0:03:03.3]} 8. e4 {[%clk 0:03:03.3]}
8... d6 {[%clk 0:03:04.7]} 9. d4 {[%clk 0:03:04.4]} 9... cxd4 {[%clk 0:03:05.9]}
10. Nxd4 {[%clk 0:03:05.2]} 10... Qc8 {[%clk 0:03:06.3]} 11. b3 {[%clk
0:03:04.8]} 11... Nbd7 {[%clk 0:03:06.6]} 12. Bb2 {[%clk 0:02:46.9]} 12... a6
{[%clk 0:03:06.8]} 13. Qd2 {[%clk 0:02:41.6]} 13... Qc7 {[%clk 0:03:06.1]} 14.
Rad1 {[%clk 0:02:42.4]} 14... Rac8 {[%clk 0:03:06.6]} 15. h3 {[%clk 0:02:41.6]}
15... Qb8 {[%clk 0:03:01.1]} 16. Nc2 {[%clk 0:02:37.6]} 16... Rfd8 {[%clk
0:02:58.7]} 17. g4 {[%clk 0:02:29.3]} 17... Nc5 {[%clk 0:02:53.6]} 18. g5 {[%clk
0:02:24.9]} 18... Nh5 {[%clk 0:02:53.6]} 19. Bf3 {[%clk 0:02:16.5]} 19... g6
{[%clk 0:02:54.9]} 20. Bxh5 {[%clk 0:02:06.7]} 20... gxh5 {[%clk 0:02:55.4]} 21.
Nd5 {[%clk 0:01:42.5]} 21... Bxd5 {[%clk 0:02:02.9]} 22. exd5 {[%clk 0:01:42]}
22... Qc7 {[%clk 0:01:53.3]} 23. Nd4 {[%clk 0:01:13.4]} 23... e5 {[%clk
0:01:35]} 24. Nc6 {[%clk 0:01:12.8]} 24... Re8 {[%clk 0:01:36.1]} 25. f4 {[%clk
0:01:13.2]} 25... Qd7 {[%clk 0:01:36.7]} 26. fxe5 {[%clk 0:01:11.8]} 26... Qxh3
{[%clk 0:01:37.4]} 27. Qg2 {[%clk 0:01:05.8]} 27... Qxg2+ {[%clk 0:01:37.4]} 28.
Kxg2 {[%clk 0:01:06.7]} 28... Bf8 {[%clk 0:01:23.3]} 29. Kf3 {[%clk 0:00:54.2]}
29... Nd7 {[%clk 0:01:02.2]} 30. exd6 {[%clk 0:00:51.8]} 30... Bxd6 {[%clk
0:01:00.6]} 31. Bd4 {[%clk 0:00:51.1]} 31... f6 {[%clk 0:00:29.9]} 32. gxf6
{[%clk 0:00:50]} 32... Kf7 {[%clk 0:00:30.7]} 33. Rxe8 {[%clk 0:00:20]} 33...
Rxe8 {[%clk 0:00:31.4]} 34. Rh1 {[%clk 0:00:17.6]} 34... b5 {[%clk 0:00:17.3]}
35. Rxh5 {[%clk 0:00:17.4]} 35... Kg6 {[%clk 0:00:18.7]} 36. Rh1 {[%clk
0:00:15.1]} 36... bxc4 {[%clk 0:00:19.3]} 37. bxc4 {[%clk 0:00:16.6]} 37... Nxf6
{[%clk 0:00:20.5]} 38. Bxf6 {[%clk 0:00:16.7]} 38... Kxf6 {[%clk 0:00:21.8]} 39.
Rh6+ {[%clk 0:00:17]} 39... Kg5 {[%clk 0:00:21.3]} 40. Rxd6 {[%clk 0:00:17.8]}
40... Rf8+ {[%clk 0:00:23.2]} 41. Ke3 {[%clk 0:00:18.5]} 41... h5 {[%clk
0:00:24.7]} 42. Ne5 {[%clk 0:00:17.6]} 42... h4 {[%clk 0:00:26.1]} 43. Nf3+
{[%clk 0:00:18.5]} 43... Kh5 {[%clk 0:00:27.7]} 44. Nxh4 {[%clk 0:00:19.4]}
44... Kxh4 {[%clk 0:00:29.6]} 45. Rxa6 {[%clk 0:00:20.4]} 45... Kg5 {[%clk
0:00:30.4]} 46. Kd4 {[%clk 0:00:21.7]} 46... Kf5 {[%clk 0:00:31.8]} 47. a4
{[%clk 0:00:22.5]} 1-0

[Event "*** Titled Tuesday Blitz"]
[Site "Chess.com"]
[Date "2019.02.05"]
[Round "4"]
[White "Last7Samurai"]
[Black "IMRosen"]
[Result "1/2-1/2"]
[WhiteElo "2702"]
[BlackElo "2516"]
[TimeControl "180+2"]
[EndTime "13:50:10 PST"]
[Termination "Game drawn by agreement"]

1. e4 {[%clk 0:03:01.9]} 1... e5 {[%clk 0:03:00.6]} 2. Nf3 {[%clk 0:03:02.5]}
2... Nf6 {[%clk 0:03:01.9]} 3. Nxe5 {[%clk 0:03:02.5]} 3... Nc6 {[%clk
0:03:03.6]} 4. Nxc6 {[%clk 0:03:01.8]} 4... dxc6 {[%clk 0:03:05.5]} 5. Nc3
{[%clk 0:03:02.7]} 5... Bc5 {[%clk 0:03:06.8]} 6. Be2 {[%clk 0:02:57.9]} 6...
Qd4 {[%clk 0:03:03.2]} 7. O-O {[%clk 0:02:54.9]} 7... Nxe4 {[%clk 0:03:04.5]} 8.
Nxe4 {[%clk 0:02:48.4]} 8... Qxe4 {[%clk 0:03:06.4]} 9. Bf3 {[%clk 0:02:46.1]}
9... Qg6 {[%clk 0:02:53.8]} 10. d4 {[%clk 0:02:35.6]} 10... Be7 {[%clk
0:02:27.9]} 11. Re1 {[%clk 0:02:35.3]} 11... Be6 {[%clk 0:02:28.4]} 12. a4
{[%clk 0:02:23.1]} 12... O-O {[%clk 0:02:18.2]} 13. a5 {[%clk 0:02:22.8]} 13...
a6 {[%clk 0:02:16.9]} 14. Bf4 {[%clk 0:02:22.1]} 14... Rac8 {[%clk 0:02:04.5]}
15. Be4 {[%clk 0:01:51.6]} 15... Bf5 {[%clk 0:01:46]} 16. Bxf5 {[%clk
0:01:43.6]} 16... Qxf5 {[%clk 0:01:47.9]} 17. Rxe7 {[%clk 0:01:39.1]} 17... Qxf4
{[%clk 0:01:49.2]} 18. g3 {[%clk 0:01:14]} 18... Qd6 {[%clk 0:01:48.1]} 19. Re4
{[%clk 0:01:10]} 19... Rfe8 {[%clk 0:01:22.5]} 20. Qe2 {[%clk 0:01:07.7]} 20...
Rxe4 {[%clk 0:01:03.3]} 21. Qxe4 {[%clk 0:01:09.6]} 21... Qd5 {[%clk 0:01:04.8]}
22. Re1 {[%clk 0:00:49.6]} 22... Qxe4 {[%clk 0:01:00]} 23. Rxe4 {[%clk
0:00:51.5]} 23... Kf8 {[%clk 0:01:01.2]} 24. Re3 {[%clk 0:00:52.3]} 24... Rd8
{[%clk 0:00:54.1]} 25. Rb3 {[%clk 0:00:50.3]} 25... Rb8 {[%clk 0:00:52.5]} 26.
Kg2 {[%clk 0:00:47.7]} 26... Ke7 {[%clk 0:00:53.9]} 27. Kf3 {[%clk 0:00:48.9]}
27... Kd6 {[%clk 0:00:53.9]} 28. Ke4 {[%clk 0:00:50.2]} 28... b6 {[%clk
0:00:47]} 29. Kd3 {[%clk 0:00:48.5]} 29... c5 {[%clk 0:00:41.9]} 30. dxc5+
{[%clk 0:00:41.4]} 30... Kxc5 {[%clk 0:00:43.2]} 31. Rc3+ {[%clk 0:00:42.3]}
31... Kd6 {[%clk 0:00:41.8]} 32. Rb3 {[%clk 0:00:42.5]} 32... b5 {[%clk
0:00:39.4]} 33. Rb4 {[%clk 0:00:41.8]} 33... c5 {[%clk 0:00:38.8]} 34. Rf4
{[%clk 0:00:35]} 34... f6 {[%clk 0:00:36]} 35. b3 {[%clk 0:00:35.9]} 35... Rd8
{[%clk 0:00:36]} 36. Ke3 {[%clk 0:00:35.5]} 36... Re8+ {[%clk 0:00:36]} 37. Re4
{[%clk 0:00:34.7]} 37... Re5 {[%clk 0:00:33.2]} 38. f4 {[%clk 0:00:34.7]} 38...
Re6 {[%clk 0:00:29.5]} 39. g4 {[%clk 0:00:29.1]} 39... g6 {[%clk 0:00:27.9]} 40.
c4 {[%clk 0:00:25.9]} 40... bxc4 {[%clk 0:00:17.8]} 41. bxc4 {[%clk 0:00:27.8]}
41... f5 {[%clk 0:00:14.3]} 42. Rxe6+ {[%clk 0:00:26.1]} 42... Kxe6 {[%clk
0:00:14.9]} 43. g5 {[%clk 0:00:27.1]} 43... Kd6 {[%clk 0:00:15.7]} 1/2-1/2

[Event "*** Titled Tuesday Blitz"]
[Site "Chess.com"]
[Date "2019.02.05"]
[Round "4"]
[White "RiskyDecision"]
[Black "alishersuleymenov"]
[Result "1-0"]
[WhiteElo "2435"]
[BlackElo "2457"]
[TimeControl "180+2"]
[EndTime "13:50:17 PST"]
[Termination "RiskyDecision won on time"]

1. d4 {[%clk 0:03:01.9]} 1... Nf6 {[%clk 0:02:59.3]} 2. c4 {[%clk 0:03:01.9]}
2... Nc6 {[%clk 0:02:53.5]} 3. Nf3 {[%clk 0:02:58.7]} 3... e6 {[%clk 0:02:47]}
4. g3 {[%clk 0:02:53.4]} 4... g6 {[%clk 0:02:29]} 5. Bg2 {[%clk 0:02:52.5]} 5...
Bg7 {[%clk 0:02:29.2]} 6. O-O {[%clk 0:02:53.3]} 6... d6 {[%clk 0:02:29.9]} 7.
Nc3 {[%clk 0:02:52.1]} 7... O-O {[%clk 0:02:30.1]} 8. e4 {[%clk 0:02:49.8]} 8...
e5 {[%clk 0:02:29.5]} 9. dxe5 {[%clk 0:02:35.5]} 9... Nxe5 {[%clk 0:02:27.7]}
10. Nxe5 {[%clk 0:02:34.6]} 10... dxe5 {[%clk 0:02:29.6]} 11. Bg5 {[%clk
0:02:20.1]} 11... c6 {[%clk 0:02:26.8]} 12. Qa4 {[%clk 0:01:59.9]} 12... Be6
{[%clk 0:02:12.4]} 13. Rfd1 {[%clk 0:01:44.2]} 13... Qb6 {[%clk 0:02:02.4]} 14.
Qb3 {[%clk 0:01:23.4]} 14... Qc7 {[%clk 0:01:47.9]} 15. Rac1 {[%clk 0:01:18.9]}
15... Rfe8 {[%clk 0:01:42]} 16. Nd5 {[%clk 0:01:19.2]} 16... Nxd5 {[%clk
0:01:34.1]} 17. cxd5 {[%clk 0:01:18.8]} 17... Bg4 {[%clk 0:01:35]} 18. Bf3
{[%clk 0:01:13.7]} 18... Bxf3 {[%clk 0:01:25.1]} 19. Qxf3 {[%clk 0:01:13.7]}
19... c5 {[%clk 0:01:07.5]} 20. d6 {[%clk 0:01:11.5]} 20... Qd7 {[%clk
0:01:07.8]} 21. Rxc5 {[%clk 0:01:07.5]} 21... Rac8 {[%clk 0:01:08.9]} 22. Rxc8
{[%clk 0:00:58.3]} 22... Rxc8 {[%clk 0:01:10.8]} 23. Be7 {[%clk 0:00:53.4]}
23... Rc2 {[%clk 0:00:59.2]} 24. Qb3 {[%clk 0:00:53.4]} 24... Re2 {[%clk
0:00:59.8]} 25. Kf1 {[%clk 0:00:49.5]} 25... Rxe4 {[%clk 0:00:59.3]} 26. Qc2
{[%clk 0:00:38.6]} 26... Rd4 {[%clk 0:00:07.6]} 27. Rxd4 {[%clk 0:00:38.9]}
27... exd4 {[%clk 0:00:09.5]} 28. Qc7 {[%clk 0:00:39.5]} 28... Qb5+ {[%clk
0:00:10.4]} 29. Kg1 {[%clk 0:00:32.6]} 29... h5 {[%clk 0:00:10.5]} 30. d7 {[%clk
0:00:31.7]} 30... Qe2 {[%clk 0:00:11.5]} 31. d8=Q+ {[%clk 0:00:31.4]} 31... Kh7
{[%clk 0:00:12.9]} 32. Qd5 {[%clk 0:00:21.8]} 32... d3 {[%clk 0:00:14.2]} 33.
Bg5 {[%clk 0:00:20.5]} 33... h4 {[%clk 0:00:12.2]} 34. Qdxf7 {[%clk 0:00:17.4]}
34... Qe1+ {[%clk 0:00:13.5]} 35. Kg2 {[%clk 0:00:18.4]} 35... Qe4+ {[%clk
0:00:09.9]} 36. Kh3 {[%clk 0:00:19.2]} 36... Qd4 {[%clk 0:00:05.5]} 37. Bf6
{[%clk 0:00:17.2]} 1-0

[Event "*** Titled Tuesday Blitz"]
[Site "Chess.com"]
[Date "2019.02.05"]
[Round "4"]
[White "Entilza"]
[Black "staz_staz"]
[Result "1-0"]
[WhiteElo "2217"]
[BlackElo "2332"]
[TimeControl "180+2"]
[EndTime "13:50:18 PST"]
[Termination "Entilza won by resignation"]

1. d4 {[%clk 0:02:57.8]} 1... d5 {[%clk 0:02:55.7]} 2. c4 {[%clk 0:02:54.6]}
2... dxc4 {[%clk 0:02:57.6]} 3. Nf3 {[%clk 0:02:54]} 3... Nf6 {[%clk 0:02:58.4]}
4. e3 {[%clk 0:02:54.3]} 4... Bg4 {[%clk 0:02:59.3]} 5. Bxc4 {[%clk 0:02:53.7]}
5... e6 {[%clk 0:03:00.5]} 6. Nc3 {[%clk 0:02:47.3]} 6... a6 {[%clk 0:02:59.5]}
7. h3 {[%clk 0:02:46.1]} 7... Bh5 {[%clk 0:02:59.3]} 8. e4 {[%clk 0:02:21.2]}
8... Bb4 {[%clk 0:02:41.1]} 9. Bg5 {[%clk 0:02:13.2]} 9... Bxf3 {[%clk
0:02:32.7]} 10. gxf3 {[%clk 0:02:12.1]} 10... Be7 {[%clk 0:02:28.5]} 11. Bf4
{[%clk 0:02:00.4]} 11... Nbd7 {[%clk 0:02:21.2]} 12. Qd2 {[%clk 0:01:57.3]}
12... Nb6 {[%clk 0:02:20.4]} 13. Bb3 {[%clk 0:01:52]} 13... c5 {[%clk
0:02:20.6]} 14. O-O-O {[%clk 0:01:32.8]} 14... O-O {[%clk 0:01:40.3]} 15. Rhg1
{[%clk 0:01:25.2]} 15... cxd4 {[%clk 0:01:38.5]} 16. Qxd4 {[%clk 0:01:11.4]}
16... Qxd4 {[%clk 0:01:39.3]} 17. Rxd4 {[%clk 0:01:13.3]} 17... Rfd8 {[%clk
0:01:30]} 18. Rxd8+ {[%clk 0:01:08.7]} 18... Bxd8 {[%clk 0:01:31.9]} 19. Rd1
{[%clk 0:00:55.8]} 19... Nfd7 {[%clk 0:01:11.2]} 20. Na4 {[%clk 0:00:52.6]}
20... Nxa4 {[%clk 0:01:03.1]} 21. Rxd7 {[%clk 0:00:50.8]} 21... Rc8+ {[%clk
0:00:59.4]} 22. Bc2 {[%clk 0:00:47.1]} 22... Nc5 {[%clk 0:00:58.2]} 23. Rd1
{[%clk 0:00:44]} 23... h6 {[%clk 0:00:16.6]} 24. b4 {[%clk 0:00:43.2]} 24... Na4
{[%clk 0:00:16.9]} 25. Rxd8+ {[%clk 0:00:40.7]} 25... Rxd8 {[%clk 0:00:18.8]}
26. Bxa4 {[%clk 0:00:41.2]} 26... Rd4 {[%clk 0:00:18.2]} 27. Bd2 {[%clk
0:00:41.3]} 27... Rd3 {[%clk 0:00:17.6]} 28. Bd1 {[%clk 0:00:40.4]} 28... g5
{[%clk 0:00:17.5]} 29. Be2 {[%clk 0:00:40.4]} 29... Rd7 {[%clk 0:00:14.2]} 30.
Kc2 {[%clk 0:00:39.4]} 30... Kg7 {[%clk 0:00:14.8]} 31. a4 {[%clk 0:00:35.8]}
31... Kg6 {[%clk 0:00:13.9]} 32. a5 {[%clk 0:00:36.2]} 32... f5 {[%clk
0:00:13.1]} 33. e5 {[%clk 0:00:35]} 33... h5 {[%clk 0:00:11.7]} 34. Bc4 {[%clk
0:00:31]} 34... Rd4 {[%clk 0:00:09.6]} 35. Bxe6 {[%clk 0:00:28.5]} 35... Rh4
{[%clk 0:00:09.6]} 36. Bd7 {[%clk 0:00:27.8]} 36... Rxh3 {[%clk 0:00:10.4]} 37.
e6 {[%clk 0:00:28.3]} 37... Kf6 {[%clk 0:00:09.8]} 38. Bxg5+ {[%clk 0:00:28.7]}
38... Kxg5 {[%clk 0:00:07.5]} 39. e7 {[%clk 0:00:29.1]} 39... Rxf3 {[%clk
0:00:07.7]} 40. e8=Q {[%clk 0:00:29.1]} 1-0

[Event "*** Titled Tuesday Blitz"]
[Site "Chess.com"]
[Date "2019.02.05"]
[Round "4"]
[White "Fins0905"]
[Black "sergeikim"]
[Result "1/2-1/2"]
[WhiteElo "2625"]
[BlackElo "2470"]
[TimeControl "180+2"]
[EndTime "13:50:19 PST"]
[Termination "Game drawn by repetition"]

1. d4 {[%clk 0:03:01.9]} 1... Nf6 {[%clk 0:03:00.3]} 2. c4 {[%clk 0:03:02.6]}
2... g6 {[%clk 0:03:01.4]} 3. Nc3 {[%clk 0:03:03.6]} 3... Bg7 {[%clk 0:03:02.5]}
4. e4 {[%clk 0:03:04.7]} 4... d6 {[%clk 0:03:03.6]} 5. f3 {[%clk 0:03:05.8]}
5... O-O {[%clk 0:03:04.7]} 6. Nge2 {[%clk 0:03:04.2]} 6... Nc6 {[%clk
0:03:05.5]} 7. Be3 {[%clk 0:03:04.4]} 7... a6 {[%clk 0:03:06.5]} 8. Qd2 {[%clk
0:03:05]} 8... Rb8 {[%clk 0:03:07.6]} 9. Rc1 {[%clk 0:03:05.2]} 9... e5 {[%clk
0:03:07.8]} 10. d5 {[%clk 0:03:03.8]} 10... Ne7 {[%clk 0:03:08.6]} 11. g3 {[%clk
0:02:47.7]} 11... c5 {[%clk 0:03:07.4]} 12. Bg2 {[%clk 0:02:43.9]} 12... b5
{[%clk 0:03:07.5]} 13. b3 {[%clk 0:02:45.2]} 13... Nd7 {[%clk 0:03:02.2]} 14.
O-O {[%clk 0:02:43.6]} 14... bxc4 {[%clk 0:02:48.5]} 15. bxc4 {[%clk 0:02:44.3]}
15... Rb4 {[%clk 0:02:47.8]} 16. Nd1 {[%clk 0:02:27.4]} 16... Nb6 {[%clk
0:02:43.5]} 17. Qd3 {[%clk 0:02:17.1]} 17... Nd7 {[%clk 0:02:03.9]} 18. Bd2
{[%clk 0:02:06.7]} 18... Rb7 {[%clk 0:02:01.3]} 19. Ne3 {[%clk 0:02:01.2]} 19...
f5 {[%clk 0:01:57.8]} 20. Qa3 {[%clk 0:01:53.2]} 20... fxe4 {[%clk 0:01:52.1]}
21. fxe4 {[%clk 0:01:54.1]} 21... Nf6 {[%clk 0:01:52.8]} 22. Rb1 {[%clk
0:01:43.9]} 22... Rxb1 {[%clk 0:01:43.5]} 23. Rxb1 {[%clk 0:01:45.8]} 23... Ng4
{[%clk 0:01:43.1]} 24. Nxg4 {[%clk 0:01:43.1]} 24... Bxg4 {[%clk 0:01:42.4]} 25.
Nc3 {[%clk 0:01:44.5]} 25... Qc8 {[%clk 0:01:34.5]} 26. Rb6 {[%clk 0:01:39.3]}
26... Bh3 {[%clk 0:01:26.7]} 27. Qxa6 {[%clk 0:00:22.7]} 27... Qg4 {[%clk
0:01:24.3]} 28. Bxh3 {[%clk 0:00:16.8]} 28... Qxh3 {[%clk 0:01:16.7]} 29. Rb1
{[%clk 0:00:18.2]} 29... Bh6 {[%clk 0:01:12.3]} 30. Bxh6 {[%clk 0:00:10.9]}
30... Qxh6 {[%clk 0:01:12.1]} 31. Qxd6 {[%clk 0:00:04.5]} 31... Qe3+ {[%clk
0:01:04.3]} 32. Kg2 {[%clk 0:00:05.8]} 32... Qxc3 {[%clk 0:01:00]} 33. Qe6+
{[%clk 0:00:06.4]} 33... Kg7 {[%clk 0:00:54.7]} 34. Rb7 {[%clk 0:00:07.1]} 34...
Qf3+ {[%clk 0:00:41]} 35. Kh3 {[%clk 0:00:06.6]} 35... Qh5+ {[%clk 0:00:22.7]}
36. Kg2 {[%clk 0:00:07.7]} 36... Qf3+ {[%clk 0:00:23]} 37. Kh3 {[%clk
0:00:08.9]} 37... Qh5+ {[%clk 0:00:17.9]} 38. Kg2 {[%clk 0:00:09.9]} 38... Qe2+
{[%clk 0:00:11.2]} 39. Kh3 {[%clk 0:00:11]} 39... Qh5+ {[%clk 0:00:08.9]} 40.
Kg2 {[%clk 0:00:11.6]} 40... Qf3+ {[%clk 0:00:09.1]} 41. Kh3 {[%clk 0:00:12.6]}
41... Qh5+ {[%clk 0:00:09.9]} 42. Kg2 {[%clk 0:00:13.8]} 1/2-1/2

[Event "*** Titled Tuesday Blitz"]
[Site "Chess.com"]
[Date "2019.02.05"]
[Round "4"]
[White "Fivetrick"]
[Black "otrov-11"]
[Result "0-1"]
[WhiteElo "2550"]
[BlackElo "2332"]
[TimeControl "180+2"]
[EndTime "13:50:22 PST"]
[Termination "otrov-11 won by resignation"]

1. e4 {[%clk 0:03:01.9]} 1... e6 {[%clk 0:03:00.7]} 2. d4 {[%clk 0:03:02.7]}
2... d5 {[%clk 0:03:01.9]} 3. Nc3 {[%clk 0:03:03.7]} 3... Bb4 {[%clk 0:03:02.7]}
4. e5 {[%clk 0:03:04.7]} 4... c5 {[%clk 0:02:59.3]} 5. a3 {[%clk 0:03:05.8]}
5... Bxc3+ {[%clk 0:02:59.9]} 6. bxc3 {[%clk 0:03:06.7]} 6... Ne7 {[%clk
0:03:01.8]} 7. h4 {[%clk 0:03:05.5]} 7... b6 {[%clk 0:02:37.5]} 8. h5 {[%clk
0:03:04.4]} 8... h6 {[%clk 0:02:38.9]} 9. Qg4 {[%clk 0:03:04.6]} 9... Kf8 {[%clk
0:02:22.1]} 10. Bd3 {[%clk 0:02:12.4]} 10... Ba6 {[%clk 0:02:16.1]} 11. Rh3
{[%clk 0:02:00.8]} 11... Bxd3 {[%clk 0:02:02.8]} 12. Rxd3 {[%clk 0:01:59.7]}
12... Nbc6 {[%clk 0:02:00.8]} 13. Nf3 {[%clk 0:01:43.2]} 13... Rc8 {[%clk
0:01:45.9]} 14. Nh4 {[%clk 0:01:25.4]} 14... Rg8 {[%clk 0:01:05.3]} 15. Rf3
{[%clk 0:01:08]} 15... Ke8 {[%clk 0:01:04.7]} 16. Qf4 {[%clk 0:00:38]} 16... Rf8
{[%clk 0:01:00.6]} 17. Ng6 {[%clk 0:00:25.2]} 17... Nxg6 {[%clk 0:00:59.7]} 18.
hxg6 {[%clk 0:00:25.4]} 18... f5 {[%clk 0:00:59.6]} 19. exf6 {[%clk 0:00:23]}
19... Rxf6 {[%clk 0:01:00.2]} 20. Qg4 {[%clk 0:00:16]} 20... Kf8 {[%clk
0:00:53.6]} 21. Qxe6 {[%clk 0:00:09.6]} 21... Rxf3 {[%clk 0:00:51.1]} 22. gxf3
{[%clk 0:00:10.6]} 22... Rc7 {[%clk 0:00:47.3]} 23. Kf1 {[%clk 0:00:04.4]} 23...
Re7 {[%clk 0:00:47.3]} 24. Qxc6 {[%clk 0:00:05]} 24... cxd4 {[%clk 0:00:45.5]}
25. cxd4 {[%clk 0:00:05.7]} 25... Kg8 {[%clk 0:00:46.9]} 26. Bf4 {[%clk
0:00:06.1]} 26... Qf8 {[%clk 0:00:41.3]} 27. Qxd5+ {[%clk 0:00:06.5]} 27... Kh8
{[%clk 0:00:41.4]} 28. Be5 {[%clk 0:00:05.7]} 28... Re8 {[%clk 0:00:39.6]} 29.
Qd6 {[%clk 0:00:06.4]} 29... Qf5 {[%clk 0:00:38.4]} 30. f4 {[%clk 0:00:05.5]}
30... Qh3+ {[%clk 0:00:39.2]} 31. Ke2 {[%clk 0:00:06.5]} 31... Qg4+ {[%clk
0:00:40.4]} 32. Kd2 {[%clk 0:00:07]} 32... Qf3 {[%clk 0:00:41.8]} 33. Qd7 {[%clk
0:00:06.6]} 33... Qxf2+ {[%clk 0:00:42.4]} 34. Kc3 {[%clk 0:00:07.5]} 34... Rg8
{[%clk 0:00:44.1]} 35. Qf7 {[%clk 0:00:06.1]} 35... Qe3+ {[%clk 0:00:44.7]} 36.
Kc4 {[%clk 0:00:06.3]} 36... Qd2 {[%clk 0:00:44.4]} 37. c3 {[%clk 0:00:07.2]}
37... Qe2+ {[%clk 0:00:44.8]} 38. Kb4 {[%clk 0:00:07.9]} 38... a5+ {[%clk
0:00:45.3]} 39. Ka4 {[%clk 0:00:06.1]} 39... Qc2+ {[%clk 0:00:45.9]} 40. Qb3
{[%clk 0:00:07.2]} 40... b5+ {[%clk 0:00:42.8]} 41. Kxa5 {[%clk 0:00:05.7]}
41... Qxb3 {[%clk 0:00:44]} 42. Rh1 {[%clk 0:00:06.4]} 42... Qxc3+ {[%clk
0:00:37.1]} 43. Kb6 {[%clk 0:00:05.5]} 43... Rc8 {[%clk 0:00:33.1]} 44. Rxh6+
{[%clk 0:00:05.5]} 44... Kg8 {[%clk 0:00:34.6]} 45. Rh7 {[%clk 0:00:06.4]} 45...
Qc6+ {[%clk 0:00:34]} 46. Ka5 {[%clk 0:00:07]} 46... Ra8+ {[%clk 0:00:35.4]} 0-1

[Event "*** Titled Tuesday Blitz"]
[Site "Chess.com"]
[Date "2019.02.05"]
[Round "4"]
[White "varacalli"]
[Black "Romn69"]
[Result "0-1"]
[WhiteElo "2429"]
[BlackElo "2257"]
[TimeControl "180+2"]
[EndTime "13:50:24 PST"]
[Termination "Romn69 won by checkmate"]

1. e4 {[%clk 0:03:01.9]} 1... c5 {[%clk 0:03:00.3]} 2. Nf3 {[%clk 0:03:02.8]}
2... Nc6 {[%clk 0:03:01.2]} 3. d4 {[%clk 0:03:04]} 3... cxd4 {[%clk 0:03:02]} 4.
Nxd4 {[%clk 0:03:05.9]} 4... Nf6 {[%clk 0:03:02.8]} 5. Nc3 {[%clk 0:03:07.2]}
5... d6 {[%clk 0:03:03.6]} 6. Bc4 {[%clk 0:03:05.7]} 6... e6 {[%clk 0:03:04]} 7.
a3 {[%clk 0:03:04.3]} 7... a6 {[%clk 0:03:04]} 8. Ba2 {[%clk 0:03:04.7]} 8...
Qc7 {[%clk 0:03:04.4]} 9. O-O {[%clk 0:03:05.5]} 9... Be7 {[%clk 0:03:05]} 10.
Kh1 {[%clk 0:03:07.1]} 10... O-O {[%clk 0:03:05.4]} 11. f4 {[%clk 0:03:08.6]}
11... Na5 {[%clk 0:03:02.7]} 12. f5 {[%clk 0:03:08.8]} 12... e5 {[%clk
0:03:00.4]} 13. Nde2 {[%clk 0:03:09.3]} 13... Nc4 {[%clk 0:02:56.7]} 14. Bg5
{[%clk 0:02:57]} 14... b5 {[%clk 0:02:11.7]} 15. Bxf6 {[%clk 0:02:56.6]} 15...
Bxf6 {[%clk 0:02:12.5]} 16. Nd5 {[%clk 0:02:57.8]} 16... Qd8 {[%clk 0:02:13.2]}
17. Bxc4 {[%clk 0:02:57.7]} 17... bxc4 {[%clk 0:02:13.7]} 18. Ng3 {[%clk
0:02:57.9]} 18... Bb7 {[%clk 0:02:13.8]} 19. b4 {[%clk 0:02:55.5]} 19... cxb3
{[%clk 0:02:08.6]} 20. cxb3 {[%clk 0:02:57.4]} 20... Bxd5 {[%clk 0:02:07.5]} 21.
Qxd5 {[%clk 0:02:56.4]} 21... Rc8 {[%clk 0:01:59.4]} 22. Rac1 {[%clk 0:02:54.3]}
22... Qb6 {[%clk 0:01:56.7]} 23. Qd3 {[%clk 0:02:46.4]} 23... Bg5 {[%clk
0:01:45.1]} 24. Rxc8 {[%clk 0:02:45.9]} 24... Rxc8 {[%clk 0:01:45.6]} 25. h3
{[%clk 0:02:37.7]} 25... Qe3 {[%clk 0:01:24]} 26. Qxe3 {[%clk 0:02:23.6]} 26...
Bxe3 {[%clk 0:01:23.9]} 27. f6 {[%clk 0:02:22.1]} 27... g6 {[%clk 0:01:06.9]}
28. Rd1 {[%clk 0:02:17.4]} 28... Rc1 {[%clk 0:00:56.9]} 29. Rxc1 {[%clk
0:02:15.2]} 29... Bxc1 {[%clk 0:00:57.7]} 30. a4 {[%clk 0:02:16]} 30... a5
{[%clk 0:00:53.6]} 31. Kg1 {[%clk 0:02:15.7]} 31... Kf8 {[%clk 0:00:54.3]} 32.
Kf2 {[%clk 0:02:16.3]} 32... Ke8 {[%clk 0:00:55]} 33. Ke2 {[%clk 0:02:17.5]}
33... Kd7 {[%clk 0:00:55.4]} 34. Kd3 {[%clk 0:02:16.5]} 34... Ke6 {[%clk
0:00:52.7]} 35. Ne2 {[%clk 0:02:14.1]} 35... Ba3 {[%clk 0:00:48.6]} 36. Kc4
{[%clk 0:02:12.3]} 36... Kxf6 {[%clk 0:00:46.7]} 37. Kd5 {[%clk 0:02:13.2]}
37... Ke7 {[%clk 0:00:47.7]} 38. Nc3 {[%clk 0:02:12]} 38... f5 {[%clk
0:00:47.5]} 39. Ne2 {[%clk 0:02:01.1]} 39... fxe4 {[%clk 0:00:34.7]} 40. Nc3
{[%clk 0:01:58.4]} 40... e3 {[%clk 0:00:34.4]} 41. Ke4 {[%clk 0:01:53.6]} 41...
Bc5 {[%clk 0:00:33.8]} 42. Kd5 {[%clk 0:01:37.9]} 42... Bd4 {[%clk 0:00:21.6]}
43. Ne2 {[%clk 0:01:37.4]} 43... Kd7 {[%clk 0:00:22.2]} 44. Ng3 {[%clk
0:01:33.5]} 44... h5 {[%clk 0:00:19.5]} 45. Ne2 {[%clk 0:01:32.6]} 45... Ke7
{[%clk 0:00:17.7]} 46. Ng3 {[%clk 0:01:30.9]} 46... Bc5 {[%clk 0:00:18.1]} 47.
Ne2 {[%clk 0:01:28.9]} 47... Kf6 {[%clk 0:00:18.7]} 48. Ke4 {[%clk 0:01:27.8]}
48... Ke6 {[%clk 0:00:19.5]} 49. Nc3 {[%clk 0:01:28.4]} 49... d5+ {[%clk
0:00:17.7]} 50. Kd3 {[%clk 0:01:20.3]} 50... e4+ {[%clk 0:00:17.5]} 51. Ke2
{[%clk 0:01:20.5]} 51... Ke5 {[%clk 0:00:17.8]} 52. Nb5 {[%clk 0:01:21.5]} 52...
d4 {[%clk 0:00:17.9]} 53. g4 {[%clk 0:01:20.4]} 53... d3+ {[%clk 0:00:18.3]} 54.
Kd1 {[%clk 0:01:21.6]} 54... hxg4 {[%clk 0:00:18.9]} 55. hxg4 {[%clk 0:01:22.2]}
55... e2+ {[%clk 0:00:19.5]} 56. Ke1 {[%clk 0:01:23.6]} 56... Bb4+ {[%clk
0:00:20.3]} 57. Kf2 {[%clk 0:01:24.6]} 57... e1=Q+ {[%clk 0:00:20.8]} 58. Kg2
{[%clk 0:01:26.5]} 58... Qe2+ {[%clk 0:00:21.4]} 59. Kg3 {[%clk 0:01:27.6]}
59... Be1+ {[%clk 0:00:20.7]} 60. Kh3 {[%clk 0:01:28.5]} 60... Qf3+ {[%clk
0:00:21.4]} 61. Kh2 {[%clk 0:01:30.4]} 61... Qg3+ {[%clk 0:00:21.6]} 62. Kh1
{[%clk 0:01:32.3]} 62... Bf2 {[%clk 0:00:22.3]} 63. Nc7 {[%clk 0:01:34]} 63...
Qg1# {[%clk 0:00:22.5]} 0-1